fUST/lending_fUST_20260520
["ID","MTS","AMOUNT","RATE_DAILY","PERIOD"]
[422652924,1779209972000,-200.0,7.817e-05,2]
[422652926,1779209973000,-200.0,7.817e-05,2]
[422652927,1779209974000,-200.0,7.817e-05,2]
[422652928,1779209990000,-200.0,7.817e-05,2]
[422652930,1779209991000,-200.0,7.817e-05,2]
[422652929,1779209991000,-200.0,7.817e-05,2]
[422652931,1779209992000,-200.0,7.817e-05,2]
[422652932,1779209992000,-200.0,7.817e-05,2]
[422652933,1779209992000,-200.0,7.817e-05,2]
[422652935,1779210124000,-377.5937116,7.715e-05,2]
[422652936,1779210124000,-31.4062884,7.716e-05,2]
[422652934,1779210124000,-300.0,7.715e-05,2]
[422652937,1779210141000,18.2867346,0.00015384,30]
[422652938,1779210159000,-300.0,6.868e-05,2]
[422652939,1779210159000,-700.0,7.716e-05,2]
[422652940,1779210160000,-1000.0,7.716e-05,2]
[422652941,1779210161000,-1000.0,7.716e-05,2]
[422652942,1779210162000,-1000.0,7.716e-05,2]
[422652943,1779210163000,-1000.0,7.716e-05,2]
[422652976,1779210505000,-207.1189448,6.957e-05,2]
[422653043,1779210632000,-500.0,7.713e-05,2]
[422653044,1779210632000,-500.0,7.713e-05,2]
[422653047,1779210632000,-500.0,7.713e-05,2]
[422653046,1779210632000,-500.0,7.713e-05,2]
[422653045,1779210632000,-500.0,7.713e-05,2]
[422653051,1779210632000,-500.0,7.713e-05,2]
[422653048,1779210632000,-500.0,7.713e-05,2]
[422653050,1779210632000,-489.8521642,7.713e-05,2]
[422653052,1779210632000,-226.7066293,7.713e-05,2]
[422653042,1779210632000,-500.0,7.713e-05,2]
[422653049,1779210632000,-500.0,7.713e-05,2]
[422653041,1779210632000,-501.24823235,7.713e-05,2]
[422653036,1779210632000,-840.11231437,7.6e-05,2]
[422653038,1779210632000,-223.88622367,7.616e-05,2]
[422653039,1779210632000,-500.0,7.713e-05,2]
[422653037,1779210632000,-39852.41208421,7.6e-05,2]
[422653054,1779210632000,-330.17,7.713e-05,2]
[422653035,1779210632000,-694.9238363,7.599e-05,2]
[422653034,1779210632000,-505.0761637,7.599e-05,2]
[422653032,1779210632000,-273.01299772,7.599e-05,2]
[422653033,1779210632000,-300.0,7.599e-05,2]
[422653030,1779210632000,-300.0,7.599e-05,2]
[422653031,1779210632000,-26.98700228,7.599e-05,2]
[422653028,1779210632000,-370.33522009,7.278e-05,2]
[422653029,1779210632000,-300.0,7.599e-05,2]
[422653040,1779210632000,-500.0,7.713e-05,2]
[422653053,1779210632000,-500.0,7.713e-05,2]
[422653063,1779210632000,-810.32719509,7.715e-05,2]
[422653058,1779210632000,-178.09912989,7.713e-05,2]
[422653057,1779210632000,-500.0,7.713e-05,2]
[422653081,1779210632000,-871.10173471,7.715e-05,2]
[422653080,1779210632000,-871.10173471,7.715e-05,2]
[422653082,1779210632000,-871.10173471,7.715e-05,2]
[422653077,1779210632000,-871.10173471,7.715e-05,2]
[422653078,1779210632000,-871.10173471,7.715e-05,2]
[422653079,1779210632000,-871.10173471,7.715e-05,2]
[422653076,1779210632000,-810.32719509,7.715e-05,2]
[422653074,1779210632000,-810.32719509,7.715e-05,2]
[422653075,1779210632000,-810.32719509,7.715e-05,2]
[422653072,1779210632000,-810.32719509,7.715e-05,2]
[422653073,1779210632000,-810.32719509,7.715e-05,2]
[422653071,1779210632000,-810.32719509,7.715e-05,2]
[422653083,1779210632000,-47.5561765,7.715e-05,2]
[422653070,1779210632000,-810.32719509,7.715e-05,2]
[422653069,1779210632000,-810.32719509,7.715e-05,2]
[422653055,1779210632000,-500.0,7.713e-05,2]
[422653059,1779210632000,-500.0,7.713e-05,2]
[422653064,1779210632000,-810.32719509,7.715e-05,2]
[422653065,1779210632000,-810.32719509,7.715e-05,2]
[422653061,1779210632000,-810.32719509,7.715e-05,2]
[422653060,1779210632000,-40842.75397975,7.714e-05,2]
[422653062,1779210632000,-810.32719509,7.715e-05,2]
[422653067,1779210632000,-276.36,7.715e-05,2]
[422653066,1779210632000,-143.61758809,7.715e-05,2]
[422653068,1779210632000,-390.349607,7.715e-05,2]
[422653056,1779210632000,-500.0,7.713e-05,2]
[422653716,1779210642000,-871.10173471,7.715e-05,2]
[422653734,1779210642000,-976.09609474,7.842e-05,2]
[422653730,1779210642000,-1745.032326,7.817e-05,2]
[422653732,1779210642000,-59148.7871454,7.817e-05,2]
[422653717,1779210642000,-871.10173471,7.715e-05,2]
[422653735,1779210642000,-1516.00811905,7.877e-05,2]
[422653728,1779210642000,-976.09609478,7.716e-05,2]
[422653726,1779210642000,-232578.4608343,7.716e-05,2]
[422653712,1779210642000,-823.54555821,7.715e-05,2]
[422653721,1779210642000,-36425.61979774,7.716e-05,2]
[422653714,1779210642000,-871.10173471,7.715e-05,2]
[422653720,1779210642000,-1466.822921,7.715e-05,2]
[422653745,1779210642000,-3623.87986358,8.077e-05,2]
[422653724,1779210642000,-44740.2428722,7.716e-05,2]
[422653743,1779210642000,-9843.96934719,8.018e-05,2]
[422653758,1779210642000,-517.70499639,8.1e-05,2]
[422653741,1779210642000,-181934.76552852,8.018e-05,2]
[422653766,1779210642000,-423195.9265653,8.218e-05,2]
[422653760,1779210642000,-154.98636691,8.1e-05,2]
[422653747,1779210642000,-976.09609474,8.093e-05,2]
[422653765,1779210642000,-2944.8447094,8.192e-05,2]
[422653762,1779210642000,-13197.8783483,8.124e-05,2]
[422653769,1779210642000,-56274.19536131,8.218e-05,2]
[422653775,1779210642000,-114404.17673149,8.218e-05,2]
[422653754,1779210642000,-555.18164734,8.1e-05,2]
[422653752,1779210642000,-276.75473127,8.1e-05,2]
[422653749,1779210642000,-3683.90626141,8.1e-05,2]
[422653751,1779210642000,-3966.57194239,8.1e-05,2]
[422653737,1779210642000,-976.09609474,7.967e-05,2]
[422653739,1779210642000,-3281.18778488,7.977e-05,2]
[422653756,1779210642000,-473.92351015,8.1e-05,2]
[422653866,1779210648000,-428.97,8.218e-05,2]
[422653867,1779210648000,-4431.14356031,8.218e-05,2]
[422653876,1779211366000,2346.37,0.00017808,120]
[422653880,1779211575000,168.672027,3.322e-05,2]
[422653941,1779211832000,-300.0,7.413e-05,2]
[422653928,1779211832000,-210.32349755,6.732e-05,2]
[422653939,1779211832000,-206.0,7.413e-05,2]
[422653930,1779211832000,-380.62233131,6.757e-05,2]
[422653943,1779211832000,-1200.0,7.413e-05,2]
[422653945,1779211832000,-1525.0711706,7.414e-05,2]
[422653933,1779211832000,-560.1854088,7.253e-05,2]
[422653931,1779211832000,-200.0,7.135e-05,2]
[422653937,1779211832000,-300.0,7.413e-05,2]
[422653935,1779211832000,-300.0,7.413e-05,2]
[422653948,1779211832000,-4841.30301227,7.414e-05,2]
[422654161,1779211838000,-153.14557534,8.1e-05,2]
[422654167,1779211838000,-693.3919763,8.115e-05,2]
[422654169,1779211838000,-420.0,8.154e-05,2]
[422654173,1779211838000,-420.0,8.154e-05,2]
[422654159,1779211838000,-668.65185757,8.06e-05,2]
[422654175,1779211838000,-1680.0,8.154e-05,2]
[422654178,1779211838000,-719.04747942,8.17e-05,2]
[422654157,1779211838000,-514.432097,8.029e-05,2]
[422654165,1779211838000,-3897.10139973,8.1e-05,2]
[422654176,1779211838000,-152.0,8.159e-05,2]
[422654171,1779211838000,-420.0,8.154e-05,2]
[422654155,1779211838000,-644.79446246,8.005e-05,2]
[422654138,1779211838000,-499.543,7.513e-05,2]
[422654153,1779211838000,-621.78829552,7.95e-05,2]
[422654163,1779211838000,-975.25060053,8.1e-05,2]
[422654142,1779211838000,-537.6845,7.73e-05,2]
[422654136,1779211838000,-7147.87630742,7.414e-05,2]
[422654151,1779211838000,-599.60298507,7.895e-05,2]
[422654144,1779211838000,-500.0,7.73e-05,2]
[422654147,1779211838000,-578.20924308,7.84e-05,2]
[422654149,1779211838000,-233.2247826,7.872e-05,2]
[422654146,1779211838000,-557.5788265,7.785e-05,2]
[422654117,1779211838000,-837.82014782,7.414e-05,2]
[422654140,1779211838000,-150.308,7.513e-05,2]
[422654182,1779211838000,-250.0,8.2e-05,2]
[422654180,1779211838000,-152.0,8.178e-05,2]
[422654221,1779211838000,-777.74131687,8.217e-05,2]
[422654231,1779211838000,-777.74131687,8.217e-05,2]
[422654229,1779211838000,-777.74131687,8.217e-05,2]
[422654217,1779211838000,-777.74131687,8.217e-05,2]
[422654227,1779211838000,-777.74131687,8.217e-05,2]
[422654213,1779211838000,-777.74131687,8.217e-05,2]
[422654225,1779211838000,-777.74131687,8.217e-05,2]
[422654211,1779211838000,-777.74131687,8.217e-05,2]
[422654223,1779211838000,-777.74131687,8.217e-05,2]
[422654215,1779211838000,-777.74131687,8.217e-05,2]
[422654184,1779211838000,-250.0,8.2e-05,2]
[422654219,1779211838000,-777.74131687,8.217e-05,2]
[422654209,1779211838000,-777.74131687,8.217e-05,2]
[422654207,1779211838000,-777.74131687,8.217e-05,2]
[422654203,1779211838000,-537.6845,8.213e-05,2]
[422654205,1779211838000,-777.74131687,8.217e-05,2]
[422654201,1779211838000,-162.380719,8.213e-05,2]
[422654191,1779211838000,-250.0,8.2e-05,2]
[422654199,1779211838000,-157.91675105,8.213e-05,2]
[422654193,1779211838000,-250.0,8.2e-05,2]
[422654195,1779211838000,-250.0,8.2e-05,2]
[422654197,1779211838000,-258.9,8.2e-05,2]
[422654188,1779211838000,-250.0,8.2e-05,2]
[422654190,1779211838000,-250.0,8.2e-05,2]
[422654186,1779211838000,-250.0,8.2e-05,2]
[422654233,1779211838000,-777.74131687,8.217e-05,2]
[422654250,1779211839000,-784.81169248,8.217e-05,2]
[422654242,1779211839000,-777.74131687,8.217e-05,2]
[422654239,1779211839000,-777.74131687,8.217e-05,2]
[422654258,1779211839000,-784.81169248,8.217e-05,2]
[422654260,1779211839000,-784.81169248,8.217e-05,2]
[422654257,1779211839000,-784.81169248,8.217e-05,2]
[422654246,1779211839000,-784.81169248,8.217e-05,2]
[422654252,1779211839000,-784.81169248,8.217e-05,2]
[422654255,1779211839000,-784.81169248,8.217e-05,2]
[422654244,1779211839000,-784.81169248,8.217e-05,2]
[422654240,1779211839000,-777.74131687,8.217e-05,2]
[422654237,1779211839000,-777.74131687,8.217e-05,2]
[422654235,1779211839000,-777.74131687,8.217e-05,2]
[422654262,1779211839000,-784.81169248,8.217e-05,2]
[422654248,1779211839000,-784.81169248,8.217e-05,2]
[422654264,1779211839000,-784.81169248,8.217e-05,2]
[422654270,1779211839000,-500.0,8.217e-05,2]
[422654272,1779211839000,-500.0,8.217e-05,2]
[422654266,1779211839000,-500.0,8.217e-05,2]
[422654295,1779211839000,-500.0,8.217e-05,2]
[422654297,1779211839000,-250.0,8.217e-05,2]
[422654293,1779211839000,-500.0,8.217e-05,2]
[422654287,1779211839000,-500.0,8.217e-05,2]
[422654289,1779211839000,-500.0,8.217e-05,2]
[422654291,1779211839000,-500.0,8.217e-05,2]
[422654302,1779211839000,-59652.75198642,8.218e-05,2]
[422654279,1779211839000,-500.0,8.217e-05,2]
[422654283,1779211839000,-500.0,8.217e-05,2]
[422654299,1779211839000,-2674569.36598382,8.218e-05,2]
[422654268,1779211839000,-500.0,8.217e-05,2]
[422654281,1779211839000,-500.0,8.217e-05,2]
[422654305,1779211839000,-5675.334293,8.218e-05,2]
[422654285,1779211839000,-500.0,8.217e-05,2]
[422654731,1779211843000,-333.78724911,8.218e-05,2]
[422654730,1779211843000,-47.74423219,8.218e-05,2]
[422654727,1779211843000,-827.55422988,8.218e-05,2]
[422654741,1779211844000,-6256.5250697,8.218e-05,2]
[422654748,1779211847000,-13002.32151757,8.218e-05,2]
[422654746,1779211847000,-262212.26935427,8.218e-05,2]
[422654749,1779211847000,-4248.63857859,8.218e-05,2]
[422654750,1779211874000,-152.0,8.141e-05,2]
[422654787,1779213032000,-150.308,7.266e-05,2]
[422654792,1779213033000,-300.0,7.5e-05,2]
[422654789,1779213033000,-399.635,7.266e-05,2]
[422654790,1779213033000,-428.693414,7.413e-05,2]
[422654788,1779213033000,-392.57921238,7.266e-05,2]
[422654793,1779213033000,-300.0,7.5e-05,2]
[422654794,1779213033000,-300.0,7.5e-05,2]
[422654795,1779213033000,-1200.0,7.5e-05,2]
[422654796,1779213033000,-1028.78437362,7.501e-05,2]
[422654791,1779213033000,-300.0,7.5e-05,2]
[422654854,1779213038000,-312.78266009,7.501e-05,2]
[422654877,1779213038000,-456.5775621,7.501e-05,2]
[422654880,1779213038000,-456.5775621,7.513e-05,2]
[422654882,1779213038000,-428.693414,7.725e-05,2]
[422654878,1779213038000,-325.9506487,7.513e-05,2]
[422654893,1779213038000,-621.78829552,7.95e-05,2]
[422654875,1779213038000,-456.1731973,7.501e-05,2]
[422654892,1779213038000,-599.60298507,7.895e-05,2]
[422654884,1779213038000,-537.6845,7.73e-05,2]
[422654896,1779213038000,-644.79446246,8.005e-05,2]
[422654886,1779213038000,-500.0,7.73e-05,2]
[422654888,1779213038000,-557.5788265,7.785e-05,2]
[422654890,1779213038000,-578.20924308,7.84e-05,2]
[422654899,1779213038000,-428.693414,8.037e-05,2]
[422654873,1779213038000,-12130.36452729,7.501e-05,2]
[422654941,1779213039000,-500.0,8.116e-05,2]
[422654928,1779213039000,-500.0,8.116e-05,2]
[422654937,1779213039000,-321.90289613,8.116e-05,2]
[422654939,1779213039000,-500.0,8.116e-05,2]
[422654948,1779213039000,-500.0,8.116e-05,2]
[422654943,1779213039000,-500.0,8.116e-05,2]
[422654944,1779213039000,-500.0,8.116e-05,2]
[422654957,1779213039000,-500.0,8.116e-05,2]
[422654952,1779213039000,-500.0,8.116e-05,2]
[422654953,1779213039000,-500.0,8.116e-05,2]
[422654955,1779213039000,-500.0,8.116e-05,2]
[422654959,1779213039000,-500.0,8.116e-05,2]
[422654935,1779213039000,-500.0,8.116e-05,2]
[422654961,1779213039000,-500.0,8.116e-05,2]
[422654950,1779213039000,-500.0,8.116e-05,2]
[422654946,1779213039000,-500.0,8.116e-05,2]
[422655004,1779213039000,-500.0,8.116e-05,2]
[422654929,1779213039000,-500.0,8.116e-05,2]
[422654967,1779213039000,-500.0,8.116e-05,2]
[422654910,1779213039000,-500.0,8.116e-05,2]
[422654912,1779213039000,-500.0,8.116e-05,2]
[422654902,1779213039000,-668.65185757,8.06e-05,2]
[422654904,1779213039000,-693.3919763,8.115e-05,2]
[422654914,1779213039000,-500.0,8.116e-05,2]
[422654916,1779213039000,-500.0,8.116e-05,2]
[422654918,1779213039000,-500.0,8.116e-05,2]
[422654908,1779213039000,-500.0,8.116e-05,2]
[422654920,1779213039000,-500.0,8.116e-05,2]
[422654924,1779213039000,-500.0,8.116e-05,2]
[422654906,1779213039000,-557.86742126,8.116e-05,2]
[422654922,1779213039000,-500.0,8.116e-05,2]
[422654926,1779213039000,-500.0,8.116e-05,2]
[422654931,1779213039000,-500.0,8.116e-05,2]
[422654933,1779213039000,-500.0,8.116e-05,2]
[422654969,1779213039000,-500.0,8.116e-05,2]
[422655025,1779213039000,-377.00199269,8.116e-05,2]
[422654971,1779213039000,-500.0,8.116e-05,2]
[422655032,1779213039000,-8540.47415794,8.117e-05,2]
[422655008,1779213039000,-500.0,8.116e-05,2]
[422655014,1779213039000,-500.0,8.116e-05,2]
[422655006,1779213039000,-500.0,8.116e-05,2]
[422655021,1779213039000,-500.0,8.116e-05,2]
[422655017,1779213039000,-500.0,8.116e-05,2]
[422655002,1779213039000,-500.0,8.116e-05,2]
[422655019,1779213039000,-500.0,8.116e-05,2]
[422655012,1779213039000,-500.0,8.116e-05,2]
[422655023,1779213039000,-500.0,8.116e-05,2]
[422655030,1779213039000,-12803.29792376,8.117e-05,2]
[422655026,1779213039000,-500.0,8.116e-05,2]
[422655028,1779213039000,-500.0,8.116e-05,2]
[422654965,1779213039000,-500.0,8.116e-05,2]
[422655016,1779213039000,-500.0,8.116e-05,2]
[422654999,1779213039000,-500.0,8.116e-05,2]
[422655010,1779213039000,-500.0,8.116e-05,2]
[422654993,1779213039000,-500.0,8.116e-05,2]
[422654997,1779213039000,-500.0,8.116e-05,2]
[422654973,1779213039000,-500.0,8.116e-05,2]
[422654976,1779213039000,-500.0,8.116e-05,2]
[422654974,1779213039000,-500.0,8.116e-05,2]
[422654980,1779213039000,-500.0,8.116e-05,2]
[422654963,1779213039000,-500.0,8.116e-05,2]
[422654995,1779213039000,-500.0,8.116e-05,2]
[422654978,1779213039000,-500.0,8.116e-05,2]
[422654991,1779213039000,-500.0,8.116e-05,2]
[422654989,1779213039000,-500.0,8.116e-05,2]
[422654986,1779213039000,-500.0,8.116e-05,2]
[422654984,1779213039000,-500.0,8.116e-05,2]
[422654987,1779213039000,-500.0,8.116e-05,2]
[422655000,1779213039000,-500.0,8.116e-05,2]
[422654982,1779213039000,-500.0,8.116e-05,2]
[422655164,1779213047000,-38695.72646537,8.117e-05,2]
[422655163,1779213047000,-235474.70192091,8.117e-05,2]
[422655168,1779213105000,-310.79520762,8.116e-05,2]
[422655167,1779213105000,-500.0,8.116e-05,2]
[422655169,1779213105000,-500.0,8.116e-05,2]
[422655173,1779213105000,-18209.20479238,8.117e-05,2]
[422655171,1779213105000,-500.0,8.116e-05,2]
[422655172,1779213105000,-300.0,8.116e-05,2]
[422655170,1779213105000,-500.0,8.116e-05,2]
[422655186,1779213284000,10000.0,0.00017,120]
[422655188,1779213324000,3273.17231411,0.00012,60]
[422655187,1779213324000,1726.82768589,0.00012,60]
[422655229,1779214232000,-1200.0,7.511e-05,2]
[422655231,1779214232000,-300.0,7.512e-05,2]
[422655235,1779214232000,-300.0,7.512e-05,2]
[422655233,1779214232000,-300.0,7.512e-05,2]
[422655220,1779214232000,-414.20620693,7.408e-05,2]
[422655221,1779214232000,-214.346707,7.423e-05,2]
[422655227,1779214232000,-892.46782448,7.511e-05,2]
[422655225,1779214232000,-307.53217552,7.511e-05,2]
[422655223,1779214232000,-413.56044473,7.467e-05,2]
[422655237,1779214232000,-456.5775621,7.513e-05,2]
[422655262,1779214232000,-371.94,7.554e-05,2]
[422655241,1779214232000,-500.0,7.513e-05,2]
[422655252,1779214232000,-151.0,7.554e-05,2]
[422655255,1779214232000,-49.93112138,7.554e-05,2]
[422655245,1779214232000,-500.0,7.513e-05,2]
[422655244,1779214232000,-500.0,7.513e-05,2]
[422655259,1779214232000,-406.66631372,7.554e-05,2]
[422655250,1779214232000,-478.5225116,7.513e-05,2]
[422655247,1779214232000,-6.89145357,7.513e-05,2]
[422655265,1779214232000,-642.65445588,7.6e-05,2]
[422655269,1779214232000,-2043.44923645,7.6e-05,2]
[422655239,1779214232000,-500.0,7.513e-05,2]
[422655316,1779214238000,-4101.80569352,7.6e-05,2]
[422655324,1779214238000,-56053.52188758,7.6e-05,2]
[422655326,1779214238000,-214.346707,7.735e-05,2]
[422655328,1779214238000,-472.38498841,7.806e-05,2]
[422655330,1779214238000,-1889.53995364,7.806e-05,2]
[422655331,1779214238000,-4251.4648957,7.806e-05,2]
[422655333,1779214238000,-7550.60165476,7.806e-05,2]
[422655378,1779214239000,-500.0,7.914e-05,2]
[422655395,1779214239000,-500.0,7.914e-05,2]
[422655382,1779214239000,-500.0,7.914e-05,2]
[422655389,1779214239000,-500.0,7.914e-05,2]
[422655416,1779214239000,-803.40369026,7.915e-05,2]
[422655391,1779214239000,-500.0,7.914e-05,2]
[422655387,1779214239000,-500.0,7.914e-05,2]
[422655393,1779214239000,-500.0,7.914e-05,2]
[422655386,1779214239000,-500.0,7.914e-05,2]
[422655420,1779214239000,-803.40369026,7.915e-05,2]
[422655397,1779214239000,-500.0,7.914e-05,2]
[422655399,1779214239000,-591.49605123,7.914e-05,2]
[422655401,1779214239000,-500.0,7.914e-05,2]
[422655413,1779214239000,-500.0,7.914e-05,2]
[422655411,1779214239000,-500.0,7.914e-05,2]
[422655414,1779214239000,-803.40369026,7.915e-05,2]
[422655418,1779214239000,-803.40369026,7.915e-05,2]
[422655380,1779214239000,-500.0,7.914e-05,2]
[422655384,1779214239000,-500.0,7.914e-05,2]
[422655376,1779214239000,-500.0,7.914e-05,2]
[422655355,1779214239000,-500.0,7.914e-05,2]
[422655373,1779214239000,-500.0,7.914e-05,2]
[422655422,1779214239000,-803.40369026,7.915e-05,2]
[422655337,1779214239000,-480.26392943,7.914e-05,2]
[422655335,1779214239000,-500.0,7.914e-05,2]
[422655339,1779214239000,-318.79840182,7.914e-05,2]
[422655341,1779214239000,-500.0,7.914e-05,2]
[422655343,1779214239000,-500.0,7.914e-05,2]
[422655345,1779214239000,-500.0,7.914e-05,2]
[422655347,1779214239000,-500.0,7.914e-05,2]
[422655371,1779214239000,-500.0,7.914e-05,2]
[422655349,1779214239000,-500.0,7.914e-05,2]
[422655365,1779214239000,-471.79881258,7.914e-05,2]
[422655367,1779214239000,-500.0,7.914e-05,2]
[422655369,1779214239000,-500.0,7.914e-05,2]
[422655351,1779214239000,-500.0,7.914e-05,2]
[422655352,1779214239000,-500.0,7.914e-05,2]
[422655356,1779214239000,-500.0,7.914e-05,2]
[422655361,1779214239000,-500.0,7.914e-05,2]
[422655358,1779214239000,-500.0,7.914e-05,2]
[422655363,1779214239000,-500.0,7.914e-05,2]
[422655424,1779214239000,-803.40369026,7.915e-05,2]
[422655374,1779214239000,-500.0,7.914e-05,2]
[422655406,1779214239000,-500.0,7.914e-05,2]
[422655403,1779214239000,-500.0,7.914e-05,2]
[422655471,1779214239000,-226.2251417,8.012e-05,2]
[422655473,1779214239000,-537.6845,8.012e-05,2]
[422655465,1779214239000,-226.2251417,7.94e-05,2]
[422655467,1779214239000,-226.2251417,7.964e-05,2]
[422655475,1779214239000,-500.0,8.012e-05,2]
[422655490,1779214239000,-152.0,8.165e-05,2]
[422655488,1779214239000,-152.0,8.151e-05,2]
[422655460,1779214239000,-28289.950682,7.916e-05,2]
[422655492,1779214239000,-599.60298507,8.177e-05,2]
[422655484,1779214239000,-250.0,8.134e-05,2]
[422655486,1779214239000,-152.0,8.142e-05,2]
[422655480,1779214239000,-10000.0,8.1e-05,2]
[422655494,1779214239000,-162.380719,8.213e-05,2]
[422655478,1779214239000,-557.5788265,8.067e-05,2]
[422655476,1779214239000,-214.346707,8.047e-05,2]
[422655498,1779214239000,-26834.72183529,8.218e-05,2]
[422655482,1779214239000,-578.20924308,8.122e-05,2]
[422655495,1779214239000,-537.6845,8.213e-05,2]
[422655500,1779214239000,-484.042256,8.218e-05,2]
[422655469,1779214239000,-226.2251417,7.988e-05,2]
[422655464,1779214239000,-226.22514172,7.916e-05,2]
[422655408,1779214239000,-500.0,7.914e-05,2]
[422655405,1779214239000,-500.0,7.914e-05,2]
[422655426,1779214239000,-803.40369026,7.915e-05,2]
[422655436,1779214239000,-803.40369026,7.915e-05,2]
[422655438,1779214239000,-803.40369026,7.915e-05,2]
[422655428,1779214239000,-803.40369026,7.915e-05,2]
[422655462,1779214239000,-1345027.53998883,7.916e-05,2]
[422655444,1779214239000,-863.65896702,7.915e-05,2]
[422655432,1779214239000,-803.40369026,7.915e-05,2]
[422655440,1779214239000,-803.40369026,7.915e-05,2]
[422655442,1779214239000,-803.40369026,7.915e-05,2]
[422655434,1779214239000,-803.40369026,7.915e-05,2]
[422655458,1779214239000,-64713.26159888,7.916e-05,2]
[422655454,1779214239000,-863.65896702,7.915e-05,2]
[422655452,1779214239000,-863.65896702,7.915e-05,2]
[422655456,1779214239000,-863.65896702,7.915e-05,2]
[422655446,1779214239000,-863.65896702,7.915e-05,2]
[422655448,1779214239000,-863.65896702,7.915e-05,2]
[422655430,1779214239000,-803.40369026,7.915e-05,2]
[422655450,1779214239000,-863.65896702,7.915e-05,2]
[422655743,1779214241000,-69074.53783519,8.218e-05,2]
[422655741,1779214241000,-2987.63384,8.218e-05,2]
[422656032,1779214244000,-3329.61532834,8.218e-05,2]
[422656031,1779214244000,-1055.89273709,7.915e-05,2]
[422656028,1779214244000,-1055.89273709,7.915e-05,2]
[422656029,1779214244000,-1055.89273709,7.915e-05,2]
[422656047,1779214247000,-528.79904169,8.218e-05,2]
[422656048,1779214247000,-162110.1818083,8.218e-05,2]
[422656050,1779214247000,-9483.97889194,8.218e-05,2]
[422656049,1779214247000,-19725.15055389,8.218e-05,2]
[422656106,1779215431000,-300.0,7.133e-05,2]
[422656104,1779215431000,-300.0,7.133e-05,2]
[422656100,1779215431000,-1200.0,6.741e-05,2]
[422656102,1779215431000,-9686.338008,6.742e-05,2]
[422656120,1779215431000,-181.0,7.846e-05,2]
[422656116,1779215431000,-160.76003,7.477e-05,2]
[422656110,1779215431000,-300.0,7.133e-05,2]
[422656122,1779215431000,-420.0,7.846e-05,2]
[422656129,1779215431000,-1179.37000332,8e-05,6]
[422656114,1779215431000,-1680.0,7.415e-05,2]
[422656126,1779215431000,-297.552,7.915e-05,2]
[422656112,1779215431000,-423.92589598,7.135e-05,2]
[422656135,1779215431000,-876.86326639,8e-05,6]
[422656124,1779215431000,-301.0,7.846e-05,2]
[422656118,1779215431000,-200.0,7.716e-05,2]
[422656424,1779215438000,-300.0,6.876e-05,2]
[422656434,1779215438000,-300.0,6.876e-05,2]
[422656430,1779215438000,-300.0,6.876e-05,2]
[422656426,1779215438000,-300.0,6.876e-05,2]
[422656432,1779215438000,-300.0,6.876e-05,2]
[422656438,1779215438000,-300.0,6.876e-05,2]
[422656441,1779215438000,-300.0,6.876e-05,2]
[422656428,1779215438000,-300.0,6.876e-05,2]
[422656439,1779215438000,-300.0,6.876e-05,2]
[422656443,1779215438000,-3022.82559765,8e-05,6]
[422656449,1779215438000,-2201.66351195,8e-05,6]
[422656451,1779215438000,-1268.88875421,8e-05,6]
[422656435,1779215438000,-300.0,6.876e-05,2]
[422656614,1779215440000,-590.76022691,8.017e-05,2]
[422656630,1779215440000,-590.76022691,8.017e-05,2]
[422656631,1779215440000,-590.76022691,8.017e-05,2]
[422656629,1779215440000,-590.76022691,8.017e-05,2]
[422656620,1779215440000,-590.76022691,8.017e-05,2]
[422656618,1779215440000,-590.76022691,8.017e-05,2]
[422656615,1779215440000,-590.76022691,8.017e-05,2]
[422656616,1779215440000,-590.76022691,8.017e-05,2]
[422656617,1779215440000,-590.76022691,8.017e-05,2]
[422656613,1779215440000,-590.76022691,8.017e-05,2]
[422656619,1779215440000,-590.76022691,8.017e-05,2]
[422656607,1779215440000,-5959.10783526,8e-05,6]
[422656611,1779215440000,-537.6845,8.013e-05,2]
[422656610,1779215440000,-160.76003,8.002e-05,2]
[422656608,1779215440000,-2208.71175107,8e-05,6]
[422656609,1779215440000,-5703.33613849,8e-05,6]
[422656606,1779215440000,-300.0,6.876e-05,2]
[422656604,1779215440000,-215.966499,6.876e-05,2]
[422656603,1779215440000,-84.033501,6.876e-05,2]
[422656602,1779215440000,-300.0,6.876e-05,2]
[422656605,1779215440000,-300.0,6.876e-05,2]
[422656612,1779215440000,-500.0,8.013e-05,2]
[422656632,1779215440000,-635.06724394,8.017e-05,2]
[422656639,1779215440000,-635.06724394,8.017e-05,2]
[422656622,1779215440000,-500.0,8.017e-05,2]